fUST/lending_fUST_20250912
["ID","MTS","AMOUNT","RATE_DAILY","PERIOD"]
[385172325,1757677852289,-480.0,0.0001452,2]
[385172326,1757677852299,-480.0,0.0001452,2]
[385172327,1757677852309,-480.0,0.0001452,2]
[385172328,1757677852319,-480.0,0.0001452,2]
[385172329,1757677852329,-480.0,0.0001452,2]
[385172330,1757677852339,-480.0,0.0001452,2]
[385172331,1757677852445,-457.83761362,0.0001452,2]
[385172332,1757677852455,-480.0,0.0001452,2]
[385172333,1757677852464,-480.0,0.0001452,2]
[385172334,1757677852474,-480.0,0.0001452,2]
[385172335,1757677852483,-497.46500625,0.0001452,2]
[385172336,1757677852493,-480.0,0.0001452,2]
[385172337,1757677852502,-480.0,0.0001452,2]
[385172338,1757677852511,-480.0,0.0001452,2]
[385172339,1757677852523,-480.0,0.0001452,2]
[385172340,1757677852533,-499.21331432,0.0001452,2]
[385172341,1757677852542,-480.0,0.0001452,2]
[385172342,1757677852551,-485.1175899,0.0001452,2]
[385172343,1757677852560,-480.0,0.0001452,2]
[385172344,1757677852571,-480.0,0.0001452,2]
[385172345,1757677852584,-480.0,0.0001452,2]
[385172346,1757677852593,-480.0,0.0001452,2]
[385172347,1757677852602,-480.0,0.0001452,2]
[385172348,1757677852612,-449.71670381,0.0001452,2]
[385172349,1757677852622,-480.0,0.0001452,2]
[385172350,1757677852631,-480.0,0.0001452,2]
[385172351,1757677852642,-480.0,0.0001452,2]
[385172352,1757677852651,-480.0,0.0001452,2]
[385172353,1757677852661,-480.0,0.0001452,2]
[385172354,1757677852670,-480.0,0.0001452,2]
[385172355,1757677852680,-480.0,0.0001452,2]
[385172356,1757677852689,-480.0,0.0001452,2]
[385172357,1757677852699,-480.0,0.0001452,2]
[385172358,1757677852708,-480.0,0.0001452,2]
[385172359,1757677852717,-480.0,0.0001452,2]
[385172360,1757677852727,-480.0,0.0001452,2]
[385172361,1757677852736,-497.24624176,0.0001452,2]
[385172362,1757677852745,-480.0,0.0001452,2]
[385172363,1757677852755,-480.0,0.0001452,2]
[385172364,1757677852765,-480.0,0.0001452,2]
[385172365,1757677852775,-480.0,0.0001452,2]
[385172366,1757677852784,-231.09043074,0.0001452,2]
[385172367,1757677852794,-529.76015036,0.0001452,2]
[385172368,1757677852803,-480.0,0.0001452,2]
[385172369,1757677852813,-552.89720791,0.0001452,2]
[385172370,1757677852823,-480.0,0.0001452,2]
[385172371,1757677852834,-480.0,0.0001452,2]
[385172372,1757677852843,-480.0,0.0001452,2]
[385172373,1757677852853,-480.0,0.0001452,2]
[385172374,1757677852863,-480.0,0.0001452,2]
[385172375,1757677852873,-480.0,0.0001452,2]
[385172376,1757677852883,-480.0,0.0001452,2]
[385172377,1757677852892,-489.76596619,0.0001452,2]
[385172378,1757677852903,-461.02074401,0.0001452,2]
[385172379,1757677852913,-480.0,0.0001452,2]
[385172380,1757677852922,-480.0,0.0001452,2]
[385172381,1757677852932,-480.0,0.0001452,2]
[385172382,1757677852941,-480.0,0.0001452,2]
[385172383,1757677852950,-480.0,0.0001452,2]
[385172384,1757677852959,-480.0,0.0001452,2]
[385172385,1757677852970,-480.0,0.0001452,2]
[385172386,1757677852983,-480.0,0.0001452,2]
[385172387,1757677852993,-480.0,0.0001452,2]
[385172388,1757677853002,-480.0,0.0001452,2]
[385172389,1757677853011,-480.0,0.0001452,2]
[385172390,1757677853022,-480.0,0.0001452,2]
[385172391,1757677853032,-480.0,0.0001452,2]
[385172392,1757677853041,-480.0,0.0001452,2]
[385172393,1757677853052,-480.0,0.0001452,2]
[385172394,1757677853062,-480.0,0.0001452,2]
[385172395,1757677853071,-480.0,0.0001452,2]
[385172396,1757677853080,-509.31083558,0.0001452,2]
[385172397,1757677853090,-480.0,0.0001452,2]
[385172398,1757677853100,-480.0,0.0001452,2]
[385172399,1757677853109,-480.0,0.0001452,2]
[385172400,1757677853118,-480.0,0.0001452,2]
[385172401,1757677853127,-370.11,0.0001452,2]
[385172402,1757677853137,-480.0,0.0001452,2]
[385172403,1757677853145,-543.70766792,0.0001452,2]
[385172404,1757677853155,-480.0,0.0001452,2]
[385172405,1757677853164,-480.0,0.0001452,2]
[385172406,1757677853174,-480.0,0.0001452,2]
[385172407,1757677853183,-480.0,0.0001452,2]
[385172408,1757677853193,-492.82041597,0.0001452,2]
[385172409,1757677853202,-480.0,0.0001452,2]
[385172410,1757677853211,-519.04515872,0.0001452,2]
[385172411,1757677853220,-480.0,0.0001452,2]
[385172412,1757677853229,-480.0,0.0001452,2]
[385172413,1757677853238,-480.0,0.0001452,2]
[385172414,1757677853247,-480.0,0.0001452,2]
[385172415,1757677853256,-480.0,0.0001452,2]
[385172416,1757677853265,-482.74554229,0.0001452,2]
[385172417,1757677853275,-490.52124139,0.0001452,2]
[385172418,1757677853284,-486.36543134,0.0001452,2]
[385172419,1757677853294,-462.13926544,0.0001452,2]
[385172420,1757677853303,-480.0,0.0001452,2]
[385172421,1757677853312,-480.0,0.0001452,2]
[385172422,1757677853321,-480.0,0.0001452,2]
[385172423,1757677853330,-485.31297155,0.0001452,2]
[385172424,1757677853339,-480.0,0.0001452,2]
[385172425,1757677853349,-480.0,0.0001452,2]
[385172426,1757677853358,-480.0,0.0001452,2]
[385172427,1757677853367,-480.0,0.0001452,2]
[385172428,1757677853376,-480.0,0.0001452,2]
[385172429,1757677853386,-484.54481576,0.0001452,2]
[385172430,1757677853396,-480.0,0.0001452,2]
[385172431,1757677853405,-164.43759275,0.0001452,2]
[385172432,1757677853415,-480.0,0.0001452,2]
[385172433,1757677853424,-480.0,0.0001452,2]
[385172434,1757677853433,-480.0,0.0001452,2]
[385172435,1757677853442,-480.0,0.0001452,2]
[385172436,1757677853452,-480.0,0.0001452,2]
[385172437,1757677853461,-515.85134254,0.0001452,2]
[385172438,1757677853471,-480.0,0.0001452,2]
[385172439,1757677853480,-480.0,0.0001452,2]
[385172440,1757677853489,-480.0,0.0001452,2]
[385172441,1757677853498,-480.0,0.0001452,2]
[385172442,1757677853507,-480.0,0.0001452,2]
[385172443,1757677853516,-551.22779104,0.0001452,2]
[385172444,1757677853525,-480.0,0.0001452,2]
[385172445,1757677853535,-480.0,0.0001452,2]
[385172446,1757677853544,-1000.0,0.00014521,2]
[385172447,1757677853553,-1001.97059172,0.00014521,2]
[385172448,1757677853563,-176.75,0.00014535,2]
[385172449,1757677853572,-176.74,0.00014535,2]
[385172450,1757677853581,-500.0,0.00014794,2]
[385172451,1757677853591,-480.0,0.00014794,2]
[385172452,1757677853601,-480.0,0.00014794,2]
[385172453,1757677853610,-501.78384746,0.00014794,2]
[385172454,1757677853620,-480.0,0.00014794,2]
[385172455,1757677853630,-480.0,0.00014794,2]
[385172456,1757677853639,-480.0,0.00014794,2]
[385172457,1757677853649,-480.0,0.00014794,2]
[385172458,1757677853658,-480.0,0.00014794,2]
[385172459,1757677853667,-480.0,0.00014794,2]
[385172460,1757677853677,-480.0,0.00014794,2]
[385172461,1757677853686,-178.38,0.00014794,2]
[385172462,1757677853695,-286.66,0.00014794,2]
[385172463,1757677853704,-480.0,0.00014794,2]
[385172464,1757677853713,-480.0,0.00014794,2]
[385172465,1757677853723,-480.0,0.00014794,2]
[385172466,1757677853732,-480.0,0.00014794,2]
[385172467,1757677853741,-480.0,0.00014794,2]
[385172468,1757677853750,-474.75949799,0.00014794,2]
[385172469,1757677853760,-480.0,0.00014794,2]
[385172470,1757677853769,-480.0,0.00014794,2]
[385172471,1757677853778,-480.0,0.00014794,2]
[385172472,1757677853787,-310.26578518,0.00014794,2]
[385172473,1757677853797,-480.0,0.00014794,2]
[385172474,1757677853807,-480.0,0.00014794,2]
[385172475,1757677853816,-480.0,0.00014794,2]
[385172476,1757677853825,-480.0,0.00014794,2]
[385172477,1757677853836,-480.0,0.00014794,2]
[385172478,1757677853846,-480.0,0.00014794,2]
[385172479,1757677853855,-480.0,0.00014794,2]
[385172480,1757677853865,-1001.05463351,0.00014821,2]
[385172481,1757677853875,-1004.34897399,0.00014821,2]
[385172482,1757677853884,-1000.0,0.00014821,2]
[385172483,1757677853893,-260.0,0.000149,2]
[385172484,1757677853903,-969.46,0.00014938,2]
[385172485,1757677853912,-500.0,0.00015068,2]
[385172486,1757677853921,-480.0,0.00015068,2]
[385172487,1757677853931,-206.72,0.00015068,2]
[385172488,1757677853940,-480.0,0.00015068,2]
[385172489,1757677853949,-192.89126168,0.00015068,2]
[385172490,1757677853958,-480.0,0.00015068,2]
[385172491,1757677853969,-327.48,0.00015068,2]
[385172492,1757677853980,-480.0,0.00015068,2]
[385172493,1757677853990,-480.0,0.00015068,2]
[385172494,1757677853999,-1500.0,0.00015068,2]
[385172495,1757677854008,-160.0,0.000151,2]
[385172496,1757677854018,-233.13074058,0.000151,2]
[385172497,1757677854027,-160.0,0.000151,2]
[385172498,1757677854038,-217.7145751,0.000151,2]
[385172499,1757677854050,-160.0,0.000151,2]
[385172500,1757677854059,-160.0,0.000151,2]
[385172501,1757677854070,-847.0429734,0.000151,2]
[385172502,1757677854079,-531.04384426,0.000151,2]
[385172503,1757677854090,-160.0,0.000151,2]
[385172504,1757677854100,-160.0,0.000151,2]
[385172505,1757677854111,-339.99,0.00015342,2]
[385172506,1757677854121,-480.0,0.00015342,2]
[385172507,1757677854131,-480.0,0.00015342,2]
[385172508,1757677854141,-480.0,0.00015342,2]
[385172509,1757677854151,-480.0,0.00015342,2]
[385172510,1757677854160,-720.0,0.00015368,2]
[385172511,1757677854169,-1500.0,0.00015368,2]
[385172512,1757677854179,-480.0,0.00015616,2]
[385172513,1757677854188,-480.0,0.00015616,2]
[385172514,1757677854197,-480.0,0.00015616,2]
[385172515,1757677854207,-2000.0,0.00015616,2]
[385172516,1757677854216,-424.27925273,0.00015674,2]
[385172517,1757677854225,-480.0,0.0001589,2]
[385172518,1757677854235,-268.33477296,0.0001589,2]
[385172519,1757677854244,-480.0,0.0001589,2]
[385172520,1757677854254,-1885.53020489,0.00015916,2]
[385172521,1757677854263,-480.0,0.00016164,2]
[385172522,1757677854273,-508.45,0.00016164,2]
[385172523,1757677854282,-753.79495446,0.00016164,2]
[385172524,1757677854291,-387.61691558,0.00016438,2]
[385172525,1757677854301,-864.0,0.00016905,2]
[385172526,1757677854310,-424.27925273,0.00017749,2]
[385172527,1757677854320,-1305.0,0.00018768,2]
[385172528,1757677854329,-1305.0,0.00018768,2]
[385172529,1757677854339,-1305.0,0.00018768,2]
[385172530,1757677854348,-985.40857652,0.00019199,2]
[385172531,1757677854358,-824.83,0.00019729,2]
[385172532,1757677854368,-424.27925273,0.00019825,2]
[385172533,1757677854377,-969.46,0.00019828,2]
[385172534,1757677854386,-9246.4749674,0.00019829,2]
[385172535,1757677854395,-4362.63444697,0.000199,2]
[385172536,1757677854404,-2036.50406089,0.0002,2]
[385172537,1757677854414,-3055.5893705,0.0002,2]
[385172538,1757677854426,-1021.81280291,0.0002,2]
[385172539,1757677854436,-949.268779,0.00020187,2]
[385172540,1757677854447,-969.46,0.00020299,2]
[385172541,1757677854456,-4362.63444669,0.00020299,2]
[385172542,1757677854466,-409.0,0.00020335,2]
[385172543,1757677854475,-1000.0,0.00020455,20]
[385172544,1757677854485,-244.0,0.00020455,20]
[385172545,1757677854494,-543.536631,0.00020548,2]
[385172546,1757677854503,-4362.63444669,0.00020699,2]
[385172547,1757677854513,-4362.63444669,0.00021098,2]
[385172548,1757677854522,-4362.63444669,0.00021498,2]
[385172549,1757677854531,-969.46,0.00021896,2]
[385172550,1757677854540,-4362.63444669,0.00021897,2]
[385172551,1757677854550,-424.27925273,0.000219,2]
[385172552,1757677854560,-500.0,0.00021973,2]
[385172553,1757677854570,-500.0,0.00021973,2]
[385172554,1757677854579,-969.46,0.00021999,2]
[385172555,1757677854589,-969.46,0.00021999,2]
[385172556,1757677854598,-969.46,0.00021999,2]
[385172557,1757677854607,-969.46,0.00021999,2]
[385172558,1757677854616,-969.46,0.00021999,2]
[385172559,1757677854625,-969.46,0.00021999,2]
[385172560,1757677854634,-969.46,0.00021999,2]
[385172561,1757677854644,-4471.66,0.00022,7]
[385172562,1757677854655,-12512.9,0.00022,7]
[385172563,1757677854665,-129188.5320058,0.00022,7]
[385172564,1757677855115,-480.0,0.00013698,2]
[385172565,1757677855126,-498.84353513,0.00013698,2]
[385172566,1757677855135,-379.35977359,0.00013698,2]
[385172567,1757677855145,-480.0,0.00013972,2]
[385172568,1757677855155,-190.0,0.00014465,2]
[385172569,1757677855165,-9369.3679942,0.00022,7]
[385172570,1757677855174,-1974.4,0.00022,7]
[385172571,1757677855184,-160.0,0.00022,7]
[385172572,1757677855193,-531.04384426,0.00022,7]
[385172573,1757677855202,-301.8,0.00022,2]
[385172574,1757677855212,-160.0,0.00022,7]
[385172575,1757677855222,-969.46,0.00022037,2]
[385172576,1757677855231,-447.90203348,0.0002206,2]
[385172577,1757677855245,-9246.4749674,0.00022254,2]
[385172578,1757677855255,-4362.63444669,0.00022297,2]
[385172579,1757677855264,-969.46,0.00022409,2]
[385172580,1757677855274,-969.46,0.00022409,2]
[385172581,1757677855284,-969.46,0.00022409,2]
[385172582,1757677855293,-969.46,0.00022409,2]
[385172583,1757677855303,-969.53855211,0.00022409,2]
[385172584,1757677855312,-1000.0,0.000225,20]
[385172585,1757677855322,-492.0,0.000225,20]
[385172586,1757677855332,-1000.0,0.00022521,2]
[385172587,1757677855341,-402.28942934,0.00022575,2]
[385172588,1757677855351,-4362.63444669,0.00022696,2]
[385172589,1757677855360,-744.74779542,0.00022712,2]
[385172590,1757677855371,-2978.99118168,0.00022712,2]
[385172591,1757677855381,-501.14702139,0.00022773,2]
[385172592,1757677855390,-145283.46037103,0.000228,2]
[385172593,1757677855399,-301.8,0.00022812,2]
[385172594,1757677855409,-3000.0,0.00022957,2]
[385172595,1757677855418,-9777.6140687,0.00022982,2]
[385172596,1757677855427,-1000.0,0.00023068,2]
[385172597,1757677855436,-4362.63444669,0.00023095,2]
[385172598,1757677855445,-500.71974058,0.00023173,2]
[385172599,1757677855455,-1108.67,0.00023287,2]
[385172600,1757677855464,-409.0,0.00023335,2]
[385172601,1757677855473,-153.0,0.0002335,2]
[385172602,1757677855483,-153.0,0.0002335,2]
[385172603,1757677855492,-4362.63444669,0.00023495,2]
[385172604,1757677855501,-1974.4,0.000236,7]
[385172605,1757677855510,-301.8,0.00023625,2]
[385172606,1757677855520,-28375.50605511,0.000238,3]
[385172607,1757677855530,-847.0429734,0.000238,3]
[385172608,1757677855539,-217.7145751,0.000238,3]
[385172609,1757677855548,-531.04384426,0.000238,3]
[385172610,1757677855558,-233.13074058,0.000238,3]
[385172611,1757677855567,-160.0,0.000238,3]
[385172612,1757677855576,-4362.63444669,0.00023894,2]
[385172613,1757677855586,-12512.9,0.000239,7]
[385172614,1757677855596,-138557.9,0.000239,7]
[385172615,1757677855605,-4471.66,0.00024,7]
[385172616,1757677855614,-500.0,0.00024,9]
[385172617,1757677855624,-847.0429734,0.00024,7]
[385172618,1757677855634,-217.7145751,0.00024,7]
[385172619,1757677855643,-500.0,0.00024,9]
[385172620,1757677855652,-233.13074058,0.00024,7]
[385172621,1757677855661,-3000.0,0.00024053,2]
[385172622,1757677855670,-182.561956,0.00024201,2]
[385172623,1757677855680,-398.0,0.0002429,10]
[385172624,1757677855691,-4362.63444669,0.00024294,2]
[385172625,1757677855701,-190.6276095,0.00024384,2]
[385172626,1757677855710,-301.8,0.00024437,2]
[385172627,1757677855720,-159.379614,0.0002444,7]
[385172628,1757677855729,-155.462,0.00024655,2]
[385172629,1757677855738,-200.0,0.00024658,15]
[385172630,1757677855748,-380.0,0.00024658,2]
[385172631,1757677855757,-157.0,0.00024658,2]
[385172632,1757677855767,-700.0,0.00024658,2]
[385172633,1757677855776,-500.0,0.00024658,2]
[385172634,1757677855786,-9246.4749674,0.00024678,2]
[385172635,1757677855796,-4362.63444669,0.00024693,2]
[385172636,1757677855805,-153.0,0.00024709,2]
[385172637,1757677855814,-153.0,0.00024709,2]
[385172638,1757677855824,-153.0,0.00024709,2]
[385172639,1757677855833,-153.0,0.00024709,2]
[385172640,1757677855843,-1000.0,0.0002475,20]
[385172641,1757677855852,-791.0,0.0002475,20]
[385172642,1757677855861,-2181.680593,0.0002476,2]
[385172643,1757677855871,-258.51054795,0.00024773,2]
[385172644,1757677855880,-2000.0,0.000248,2]
[385172645,1757677855890,-1974.4,0.000248,7]
[385172646,1757677855900,-160.0,0.000248,3]
[385172647,1757677855909,-160.0,0.000248,3]
[385172648,1757677855918,-985.40857652,0.000248,2]
[385172649,1757677855927,-160.0,0.0002489,10]
[385172650,1757677855936,-160.0,0.000249,10]
[385172651,1757677855946,-1372.01970851,0.000249,7]
[385172652,1757677855955,-505.662567,0.000249,7]
[385172653,1757677855965,-505.662567,0.000249,7]
[385172654,1757677855980,-505.662567,0.000249,7]
[385172655,1757677855989,-151.0,0.000249,7]
[385172656,1757677855999,-505.662567,0.000249,7]
[385172657,1757677856008,-151.0,0.000249,7]
[385172658,1757677856019,-735037.40561,0.000249,2]
[385172659,1757677856029,-151.0,0.000249,7]
[385172660,1757677856038,-151.0,0.000249,7]
[385172661,1757677856048,-151.0,0.000249,7]
[385172662,1757677856058,-151.0,0.000249,7]
[385172663,1757677856068,-151.0,0.000249,7]
[385172664,1757677856079,-151.0,0.000249,7]
[385172665,1757677856090,-202.224361,0.000249,7]
[385172666,1757677856100,-151.0,0.000249,7]
[385172667,1757677856109,-202.224361,0.000249,7]
[385172668,1757677856119,-164.978103,0.000249,7]
[385172669,1757677856129,-202.224361,0.000249,7]
[385172670,1757677856139,-202.224361,0.000249,7]
[385172671,1757677856148,-155.538036,0.000249,7]
[385172672,1757677856159,-155.538036,0.000249,7]
[385172673,1757677856169,-155.538036,0.000249,7]
[385172674,1757677856178,-155.538036,0.000249,7]
[385172675,1757677856187,-341.268041,0.000249,7]
[385172676,1757677856196,-341.268041,0.000249,7]
[385172677,1757677856205,-341.268041,0.000249,7]
[385172678,1757677856214,-341.268041,0.000249,7]
[385172679,1757677856223,-157.0,0.00024932,2]
[385172680,1757677856233,-700.0,0.00024932,2]
[385172681,1757677856243,-500.0,0.00024932,2]
[385172682,1757677856252,-156.53,0.00024985,2]
[385172683,1757677856261,-19017.46496844,0.00025,2]
[385172684,1757677856271,-1070.18548945,0.00025,2]
[385172685,1757677856280,-16108.86618942,0.00025,2]
[385172686,1757677856290,-2635.75896457,0.00025,2]
[385172687,1757677856301,-208.95789907,0.00025,2]
[385172688,1757677856311,-10364.0,0.00025,2]
[385172689,1757677856321,-360.72727545,0.00025,2]
[385172690,1757677856331,-500.0,0.00025,2]
[385172691,1757677856340,-104954.1510142,0.00025,2]
[385172692,1757677856349,-600.0,0.00025,2]
[385172693,1757677856359,-160.0,0.00025,7]
[385172694,1757677856370,-500.78,0.00025,10]
[385172695,1757677856382,-500.0,0.00025,10]
[385172696,1757677856391,-500.0,0.00025,7]
[385172697,1757677856401,-500.0,0.00025,10]
[385172698,1757677856411,-151.0,0.00025,7]
[385172699,1757677856421,-151.0,0.00025,7]
[385172700,1757677856431,-154.62876,0.00025,7]
[385172701,1757677856441,-151.0,0.00025,7]
[385172702,1757677856450,-151.0,0.00025,7]
[385172703,1757677856459,-151.0,0.00025,7]
[385172704,1757677856469,-159.822489,0.00025,7]
[385172705,1757677856478,-159.822489,0.00025,7]
[385172706,1757677856488,-159.822489,0.00025,7]
[385172707,1757677856497,-159.822489,0.00025,7]
[385172708,1757677856507,-151.0,0.00025,7]
[385172709,1757677856517,-151.0,0.00025,7]
[385172710,1757677856526,-151.0,0.00025,7]
[385172711,1757677856536,-151.0,0.00025,7]
[385172712,1757677856546,-151.0,0.00025,7]
[385172713,1757677856556,-176.085703,0.00025,7]
[385172714,1757677856566,-296.965746,0.00025,7]
[385172715,1757677856575,-151.0,0.00025,7]
[385172716,1757677856585,-158.845699,0.00025,7]
[385172717,1757677856594,-151.0,0.00025,7]
[385172718,1757677856604,-151.0,0.00025,7]
[385172719,1757677856613,-151.0,0.00025,7]
[385172720,1757677856623,-151.0,0.00025,7]
[385172721,1757677856632,-151.0,0.00025,7]
[385172722,1757677856642,-151.0,0.00025,7]
[385172723,1757677856651,-151.0,0.00025,7]
[385172724,1757677856660,-151.0,0.00025,7]
[385172725,1757677856670,-168.859862,0.00025,7]
[385172726,1757677856679,-730.328185,0.00025,7]
[385172727,1757677856690,-417.15472785,0.00025,10]
[385172728,1757677856699,-730.328185,0.00025,7]
[385172729,1757677856708,-730.328185,0.00025,7]
[385172730,1757677856718,-4362.63444669,0.00025092,2]
[385172731,1757677856727,-138557.9,0.000251,7]
[385172732,1757677856736,-153.188836,0.00025139,2]
[385172733,1757677856745,-3000.0,0.00025149,2]
[385172734,1757677856754,-486.7987401,0.00025157,2]
[385172735,1757677856763,-12512.9,0.000252,7]
[385172736,1757677856772,-223.88,0.00025206,2]
[385172737,1757677856782,-700.0,0.00025206,2]
[385172738,1757677856791,-500.0,0.00025206,2]
[385172739,1757677856801,-301.8,0.00025249,7]
[385172740,1757677856810,-303.1260357,0.00025257,2]
[385172741,1757677856819,-4471.66,0.000253,7]
[385172742,1757677856828,-200000.0,0.0002544,2]
[385172743,1757677856837,-900.0,0.00025469,3]
[385172744,1757677856846,-700.0,0.0002548,2]
[385172745,1757677856855,-500.0,0.0002548,2]
[385172746,1757677856864,-4362.63444669,0.00025492,3]
[385172747,1757677856875,-1000.0,0.000255,2]
[385172748,1757677856883,-160.0,0.00025593,3]
[385172749,1757677856893,-167.02,0.00025717,7]
[385172750,1757677856902,-1262.07,0.00025717,7]
[385172751,1757677856910,-152.22,0.00025721,7]
[385172752,1757677856920,-153.0,0.00025753,2]
[385172753,1757677856929,-700.0,0.00025754,2]
[385172754,1757677856938,-500.0,0.00025754,2]
[385172755,1757677856947,-17808.49480638,0.000258,2]
[385172756,1757677856956,-2000.0,0.000258,2]
[385172757,1757677856965,-167.02,0.00025814,7]
[385172758,1757677856980,-1262.07,0.00025817,7]
[385172759,1757677856989,-152.22,0.00025862,7]
[385172760,1757677856999,-167.02,0.00025862,7]
[385172761,1757677857010,-152.22,0.00025869,7]
[385172762,1757677857022,-4362.63444669,0.00025891,4]
[385172763,1757677857033,-260.5330253,0.000259,2]
[385172764,1757677857043,-167.02041926,0.00025914,7]
[385172765,1757677857054,-1262.07,0.00025917,7]
[385172766,1757677857064,-625.64212124,0.0002594,2]
[385172767,1757677857073,-152.22,0.00025969,7]
[385172768,1757677857083,-522.08711689,0.00026,2]
[385172769,1757677857092,-19900.0,0.00026,2]
[385172770,1757677857182,-470549.99972575,0.00026,7]
[385172771,1757677857210,-2992.05673688,0.00026,7]
[385172772,1757677857220,-160.0,0.00026,3]
[385172773,1757677857230,-1974.4,0.00026,7]
[385172774,1757677857241,-48564.08631733,0.00026,30]
[385172775,1757677857250,-80097.75179335,0.00026,7]
[385172776,1757677857472,10000.01,0.00013498,2]
[385172777,1757677857495,10000.01,0.00013498,2]
[385172778,1757677857520,10000.01,0.00013498,2]
[385172779,1757677857543,10000.01,0.00013498,2]
[385172780,1757677857567,10000.01,0.00013498,2]
[385172781,1757677857590,10000.01,0.00013498,2]
[385172782,1757677857612,10000.01,0.00013498,2]
[385172783,1757677857636,10000.01,0.00013498,2]
[385172784,1757677857659,10000.01,0.00013498,2]
[385172785,1757677857682,10000.01,0.00013498,2]
[385176535,1757677904926,1679.0815026,0.00028499,120]
[385177400,1757678019476,379.46381349,0.00013473,2]
[385177403,1757678354396,3583.26094091,0.00013498,2]
[385177404,1757678359666,303.5710508,0.00013498,2]
[385177405,1757678360593,196.44,0.00027397,120]
[385177409,1757678432023,4833.0,0.00013498,2]
[385177410,1757678550933,157.789408,0.00027397,120]
[385177425,1757678689457,900.7141948,0.00013498,2]
[385177426,1757678689481,2234.63912854,0.00013498,2]
[385177429,1757678700016,242.85684064,0.00013498,2]
[385177435,1757678834160,520.0,0.00013497,2]
[385177436,1757678861852,277.0,0.00027397,120]
[385177485,1757679024649,2743.43415787,0.00013498,2]
[385177524,1757679032696,-4301.28514796,0.00013498,2]
[385177532,1757679032771,-58.81779461,0.00013498,2]
[385177537,1757679032811,-50000.112652,0.00013498,2]
[385177804,1757679038680,-215639.68440543,0.00013498,2]
[385177806,1757679038692,-328.46952552,0.00013598,2]
[385177807,1757679038702,-500.0,0.00013673,2]
[385177809,1757679038711,-500.0,0.00013673,2]
[385177811,1757679038720,-629.10698145,0.00013673,2]
[385177813,1757679038729,-500.0,0.00013673,2]
[385177815,1757679038740,-481.9840955,0.00013673,2]
[385177817,1757679038749,-500.0,0.00013673,2]
[385177819,1757679038759,-405.36737293,0.00013673,2]
[385177821,1757679038768,-500.0,0.00013673,2]
[385177823,1757679038778,-500.0,0.00013673,2]
[385177825,1757679038787,-500.0,0.00013673,2]
[385177827,1757679038796,-500.0,0.00013673,2]
[385177829,1757679038806,-639.1747751,0.00013673,2]
[385177831,1757679038815,-191.12119024,0.00013673,2]
[385177833,1757679038824,-500.0,0.00013673,2]
[385177835,1757679038834,-516.04909598,0.00013673,2]
[385177837,1757679038843,-500.0,0.00013673,2]
[385177839,1757679038856,-500.0,0.00013673,2]
[385177841,1757679038866,-500.0,0.00013673,2]
[385177843,1757679038875,-393.34958586,0.00013673,2]
[385177845,1757679038885,-500.0,0.00013673,2]
[385177847,1757679038895,-500.0,0.00013673,2]